Workbook

Sheet Tabla y Gráficos
B4: Nombre: | C4: Gerardo A. Flores Ibarra
B5: Fecha: | C5: 12 de Julio de 2025
B6: Ejercicio: | C6: Proyecto Final
B9: Objetivo: Dar seguimiento del avance en las tareas de los alumnos de 6º semestre y con la calificación del examen obtener su calificación final.
B10: Instrucciones: Al seleccionar el No. del Alumno podemos ver de quien se trata y sus calificaciones, así como las gráficas correspondientes.
B11: En la parte de abajo podemos ver los avances del grupo en cuanto a las tareas realizadas
B12: Tambíén podemos ver que alumnos terminaro primero la tarea 1 o la 2 o la 3
B13: Y por medio de MACROS podemos preparar una nueva tabla sin datos para capturar nuevas tareas o deshacer la copia realizada
A15: No. | B15: Nombre del Alumno | C15: TAREA 1 | D15: TAREA 2 | E15: TAREA 3 | F15: TAREA 4 | G15: TAREA 5 | H15: TAREA 6 | I15: TAREA 7 | J15: TAREA 8 | K15: TAREA 9 | L15: TAREA 10 | M15: TAREA 11 | N15: Tareas | O15: Examen | P15: Calificación
A16: 10 | B16: =VLOOKUP($A$16,Tabla1[],2) -> MORALES HERNANDEZ RODRIGO | C16: =VLOOKUP($A$16,Tabla1[],3) -> 75 | D16: =VLOOKUP($A$16,Tabla1[],4) -> 75 | E16: =VLOOKUP($A$16,Tabla1[],5) -> 100 | F16: =VLOOKUP($A$16,Tabla1[],6) -> 60 | G16: =VLOOKUP($A$16,Tabla1[],7) -> 60 | H16: =VLOOKUP($A$16,Tabla1[],8) -> 95 | I16: =VLOOKUP($A$16,Tabla1[],9) -> 65 | J16: =VLOOKUP($A$16,Tabla1[],10) -> 100 | K16: =VLOOKUP($A$16,Tabla1[],11) -> 60 | L16: =VLOOKUP($A$16,Tabla1[],12) -> 60 | M16: =VLOOKUP($A$16,Tabla1[],13) -> 60 | N16: =VLOOKUP($A$16,Tabla1[],14) -> 3.681818182 | O16: =VLOOKUP($A$16,Tabla1[],15) -> 3 | P16: =VLOOKUP($A$16,Tabla1[],16) -> 6.681818182
A42: No. | B42: Nombre del Alumno | C42: Ejercicio: Extiende sucesiones aritméticas | D42: Ejercicio: Usa fórmulas de sucesiones aritméticas | E42: Ejercicio: Fórmulas recursivas para sucesiones aritméticas | F42: Ejercicio: Fórmulas explícitas para sucesiones aritméticas | G42: Ejercicio: Extiende sucesiones geométricas | H42: Ejercicio: Extiende sucesiones geométricas: negativas y fracciones | I42: Ejercicio: Usa fórmulas de sucesiones geométricas | J42: Ejercicio: La pendiente a partir de una gráfica | K42: Ejercicio: Gráficar a partir de la pendiente | L42: Ejercicio: Pendiente en una tabla | M42: Ejercicio: La pendiente a partir de dos puntos | N42: Columna1 | O42: Columna2 | P42: Columna3
C43: Fecha de entrega: 2025-06-27 | D43: Fecha de entrega: 2025-06-27 | E43: Fecha de entrega: 2025-06-27 | F43: Fecha de entrega: 2025-06-27 | G43: Fecha de entrega: 2025-06-27 | H43: Fecha de entrega: 2025-06-27 | I43: Fecha de entrega: 2025-06-27 | J43: Fecha de entrega: 2025-07-03 | K43: Fecha de entrega: 2025-07-03 | L43: Fecha de entrega: 2025-07-03 | M43: Fecha de entrega: 2025-07-03 | N43: Promedio de las tareas 50% | O43: Calificación del examen 50% | P43: Calificación Final
A44: 1 | B44: ALVAREZ AREVALO ANGEL SANTIAGO | C44: 100 | D44: 90 | E44: 100 | F44: 70 | G44: ='[1]MAT. APLICADAS (INTERSEMESTRAL '!T15 -> 100 | H44: 80 | I44: 95 | J44: 100 | K44: 60 | L44: 70 | M44: 100 | N44: =AVERAGE(C44:M44)/10/2 -> 4.386363636 | O44: 3.5 | P44: =N44+O44 -> 7.886363636
A45: 2 | B45: CABRALES DE LEON MARIA JOCELYN | C45: 90 | D45: 50 | E45: 100 | F45: 90 | G45: 60 | H45: 100 | I45: 35 | J45: 100 | K45: 95 | L45: 100 | M45: 90 | N45: =AVERAGE(C45:M45)/10/2 -> 4.136363636 | O45: 3 | P45: =N45+O45 -> 7.136363636
A46: 3 | B46: CHAVEZ URISTA YAHIR | C46: 100 | D46: 100 | E46: 90 | F46: 100 | G46: 85 | H46: 70 | I46: 100 | J46: 90 | K46: 75 | L46: 50 | M46: 100 | N46: 4.363636364 | O46: 2 | P46: 6.363636364
A47: 4 | B47: CISNEROS ROJAS ANGEL EMMANUEL | C47: 50 | D47: 60 | E47: 100 | F47: 100 | G47: 90 | H47: 100 | I47: 100 | J47: 90 | K47: 75 | L47: 80 | M47: 90 | N47: 4.25 | O47: 3 | P47: 7.25
A48: 5 | B48: GARCIA RODRIGUEZ DIEGO CLEMENTINO | C48: 75 | D48: 80 | E48: 90 | F48: 50 | G48: 100 | H48: 50 | I48: 90 | J48: 100 | K48: 80 | L48: 70 | M48: 50 | N48: 3.795454545 | O48: 1 | P48: 4.795454545
A49: 6 | B49: GONZALEZ SANCHEZ ESCARLETH GUADALUPE | C49: 100 | D49: 90 | E49: 50 | F49: 60 | G49: 90 | H49: 60 | I49: 100 | J49: 90 | K49: 80 | L49: 50 | M49: 60 | N49: 3.772727273 | O49: 2.5 | P49: 6.272727273
A50: 7 | B50: GUTIERREZ ZAPATA KIMBERLY JANNET | C50: 90 | D50: 100 | E50: 100 | F50: 100 | G50: 75 | H50: 75 | I50: 70 | J50: 50 | K50: 100 | L50: 65 | M50: 50 | N50: 3.977272727 | O50: 3.5 | P50: 7.477272727
A51: 8 | B51: HERNANDEZ JARED MARTIN | C51: 70 | D51: 50 | E51: 75 | F51: 70 | G51: 100 | H51: 80 | I51: 50 | J51: 65 | K51: 90 | L51: 100 | M51: 100 | N51: 3.863636364 | O51: 3.5 | P51: 7.363636364
A52: 9 | B52: LUEVANOS ROSALES JUAN PABLO | C52: 100 | D52: 65 | E52: 60 | F52: 50 | G52: 50 | H52: 100 | I52: 60 | J52: 75 | K52: 80 | L52: 50 | M52: 75 | N52: 3.477272727 | O52: 1.5 | P52: 4.977272727
A53: 10 | B53: MORALES HERNANDEZ RODRIGO | C53: 75 | D53: 75 | E53: 100 | F53: 60 | G53: 60 | H53: 95 | I53: 65 | J53: 100 | K53: 60 | L53: 60 | M53: 60 | N53: 3.681818182 | O53: 3 | P53: 6.681818182
A54: 11 | B54: VARGAS TORRES OSVALDO | C54: 80 | D54: 80 | E54: 75 | F54: 100 | G54: 70 | H54: 100 | I54: 100 | J54: 90 | K54: 100 | L54: 90 | M54: 90 | N54: 4.431818182 | O54: 3 | P54: 7.431818182
A55: 12 | B55: VELA HERNANDEZ ANGEL RUBEN | C55: 100 | D55: 90 | E55: 50 | F55: 90 | G55: 100 | H55: 90 | I55: 90 | J55: 75 | K55: 70 | L55: 100 | M55: 50 | N55: 4.113636364 | O55: 3.5 | P55: 7.613636364
E57: Promedio de Tareas: | G57: =AVERAGE(Tareas) -> 4.020833333
E58: Promedio de Examen: | G58: =AVERAGE(Examen) -> 2.75
E59: Promedio de Calificación: | G59: =AVERAGE(Calificacion) -> 6.770833333
E60: Calificación Máxima: | G60: =MAX(Calificacion) -> 7.886363636
E61: Calificación Mínima: | G61: =MIN(Calificacion) -> 4.795454545
B63: Aquí mostramos los avances del grupo en cada tarea (Estados Dinámicos)
B64: Terminado: Todo el gurpo a completo la tarea
B65: En proceso: Algunos faltan de terminar la tarea
B66: Por hacer: Nadie a empezado la tarea
B68: TAREAS | C68: AVANCES
B69: Ejercicio: Extiende sucesiones aritméticas | C69: Terminado
B70: Ejercicio: Usa fórmulas de sucesiones aritméticas | C70: En proceso
B71: Ejercicio: Fórmulas recursivas para sucesiones aritméticas | C71: Por hacer
B72: Ejercicio: Fórmulas explícitas para sucesiones aritméticas | C72: Terminado
B73: Ejercicio: Extiende sucesiones geométricas | C73: Por hacer
B74: Ejercicio: Extiende sucesiones geométricas: negativas y fracciones | C74: En proceso
B75: Ejercicio: Usa fórmulas de sucesiones geométricas | C75: Por hacer
B76: Ejercicio: La pendiente a partir de una gráfica | C76: Terminado
B77: Ejercicio: Gráficar a partir de la pendiente | C77: Por hacer
B78: Ejercicio: Pendiente en una tabla | C78: Terminado
B79: Ejercicio: La pendiente a partir de dos puntos | C79: En proceso
B81: Aquí se muestran que tarea terminaron primero cada alumno (Segmentación de Datos)
B83: Nombre del Alumno | C83: T. Terminada
B84: ALVAREZ AREVALO ANGEL SANTIAGO | C84: Tarea 1
B85: CABRALES DE LEON MARIA JOCELYN | C85: Tarea 3
B86: CHAVEZ URISTA YAHIR | C86: Tarea 2
B87: CISNEROS ROJAS ANGEL EMMANUEL | C87: Tarea 3
B88: GARCIA RODRIGUEZ DIEGO CLEMENTINO | C88: Tarea 1
B89: GONZALEZ SANCHEZ ESCARLETH GUADALUPE | C89: Tarea 3
B90: GUTIERREZ ZAPATA KIMBERLY JANNET | C90: Tarea 2
B91: HERNANDEZ JARED MARTIN | C91: Tarea 1
B92: LUEVANOS ROSALES JUAN PABLO | C92: Tarea 3
B93: MORALES HERNANDEZ RODRIGO | C93: Tarea 2
B94: VARGAS TORRES OSVALDO | C94: Tarea 3
B95: VELA HERNANDEZ ANGEL RUBEN | C95: Tarea 1
B98: A continuación tenemos dos MACROS, una hace una copia de la Tabla original pero sin datos para capturar nuevas tareas
B99: La otra Macro elimina la copia realizada

Sheet Calificaciones
A3: Nombre del Alumno | B3: Calificación Final
A4: ALVAREZ AREVALO ANGEL SANTIAGO | B4: 7.886363636
A5: CABRALES DE LEON MARIA JOCELYN | B5: 7.136363636
A6: CHAVEZ URISTA YAHIR | B6: 6.363636364
A7: CISNEROS ROJAS ANGEL EMMANUEL | B7: 7.25
A8: GARCIA RODRIGUEZ DIEGO CLEMENTINO | B8: 4.795454545
A9: GONZALEZ SANCHEZ ESCARLETH GUADALUPE | B9: 6.272727273
A10: GUTIERREZ ZAPATA KIMBERLY JANNET | B10: 7.477272727
A11: HERNANDEZ JARED MARTIN | B11: 7.363636364
A12: LUEVANOS ROSALES JUAN PABLO | B12: 4.977272727
A13: MORALES HERNANDEZ RODRIGO | B13: 6.681818182
A14: VARGAS TORRES OSVALDO | B14: 7.431818182
A15: VELA HERNANDEZ ANGEL RUBEN | B15: 7.613636364
A16: Promedio | B16: 6.770833333

Sheet Tareas
A3: Nombre del Alumno | B3: Tareas
A4: ALVAREZ AREVALO ANGEL SANTIAGO | B4: 4.386363636
A5: CABRALES DE LEON MARIA JOCELYN | B5: 4.136363636
A6: CHAVEZ URISTA YAHIR | B6: 4.363636364
A7: CISNEROS ROJAS ANGEL EMMANUEL | B7: 4.25
A8: GARCIA RODRIGUEZ DIEGO CLEMENTINO | B8: 3.795454545
A9: GONZALEZ SANCHEZ ESCARLETH GUADALUPE | B9: 3.772727273
A10: GUTIERREZ ZAPATA KIMBERLY JANNET | B10: 3.977272727
A11: HERNANDEZ JARED MARTIN | B11: 3.863636364
A12: LUEVANOS ROSALES JUAN PABLO | B12: 3.477272727
A13: MORALES HERNANDEZ RODRIGO | B13: 3.681818182
A14: VARGAS TORRES OSVALDO | B14: 4.431818182
A15: VELA HERNANDEZ ANGEL RUBEN | B15: 4.113636364
A16: Promedio | B16: 4.020833333

Sheet Examen
A3: Nombre del Alumno | B3: Examen
A4: ALVAREZ AREVALO ANGEL SANTIAGO | B4: 3.5
A5: CABRALES DE LEON MARIA JOCELYN | B5: 3
A6: CHAVEZ URISTA YAHIR | B6: 2
A7: CISNEROS ROJAS ANGEL EMMANUEL | B7: 3
A8: GARCIA RODRIGUEZ DIEGO CLEMENTINO | B8: 1
A9: GONZALEZ SANCHEZ ESCARLETH GUADALUPE | B9: 2.5
A10: GUTIERREZ ZAPATA KIMBERLY JANNET | B10: 3.5
A11: HERNANDEZ JARED MARTIN | B11: 3.5
A12: LUEVANOS ROSALES JUAN PABLO | B12: 1.5
A13: MORALES HERNANDEZ RODRIGO | B13: 3
A14: VARGAS TORRES OSVALDO | B14: 3
A15: VELA HERNANDEZ ANGEL RUBEN | B15: 3.5
A16: Promedio | B16: 2.75
